bitfinex/quotes_BTCUSD_20250308
["timestamp","ask_amount","ask_price","bid_price","bid_amount"]
[1741472945198,0.0181929,86248.0,86247.0,0.011594]
[1741472945450,0.0181929,86248.0,86247.0,0.02430024]
[1741472948229,0.0185325,86248.0,86247.0,0.02430024]
[1741472950974,0.0185325,86248.0,86247.0,0.02455958]
[1741472951183,0.0185325,86248.0,86247.0,0.01296558]
[1741472951388,0.0185325,86248.0,86247.0,0.01270624]
[1741472951586,0.0185325,86248.0,86244.0,0.0117648]
[1741472951816,0.0185325,86248.0,86245.0,0.01280946]
[1741472952434,0.0185325,86248.0,86246.0,0.11168]
[1741472952811,0.0185325,86248.0,86247.0,0.01280551]
[1741472956194,0.0185325,86248.0,86247.0,0.09270551]
[1741472956360,0.0003396,86248.0,86247.0,0.64159113]
[1741472956561,0.0003396,86248.0,86247.0,0.64205226]
[1741472958926,0.0003396,86248.0,86247.0,0.98745226]
[1741472959308,0.0185301,86248.0,86247.0,0.98745226]
[1741472961591,0.0185301,86248.0,86247.0,1.12612613]
[1741472965886,0.0185301,86248.0,86247.0,1.14465613]
[1741472967713,0.0185301,86248.0,86247.0,1.16965613]
[1741472971539,0.0185301,86248.0,86247.0,1.16982593]
[1741472972989,0.0185301,86248.0,86247.0,1.49322593]
[1741472974074,1e-07,86248.0,86247.0,1.49322593]
[1741472974267,6e-07,86249.0,86248.0,0.35113485]
[1741472974450,6e-07,86249.0,86248.0,0.43159598]
[1741472974786,6e-07,86249.0,86248.0,0.44438828]
[1741472975396,6e-07,86249.0,86248.0,0.51868828]
[1741472975891,0.0003398,86262.0,86257.0,0.025]
[1741472976094,0.0003398,86262.0,86257.0,1.280102]
[1741472976303,0.0003398,86262.0,86257.0,1.29171705]
[1741472976638,0.0003398,86262.0,86257.0,1.29636905]
[1741472977468,0.01852509,86258.0,86257.0,1.29636905]
[1741472977704,4.9e-07,86262.0,86261.0,0.630004]
[1741472977913,4.9e-07,86262.0,86261.0,0.79338485]
[1741472978128,4.9e-07,86262.0,86261.0,0.8061516]
[1741472981035,2.7e-07,86262.0,86261.0,0.8061516]
[1741472981451,0.0003402,86274.0,86271.0,0.607987]
[1741472981653,0.0003402,86274.0,86271.0,0.73412785]
[1741472981850,0.0003402,86274.0,86271.0,1.59302587]
[1741472982657,0.0003402,86274.0,86271.0,1.59342984]
[1741472985949,0.01852338,86272.0,86271.0,1.61721668]
[1741472987188,0.01852338,86272.0,86271.0,1.64221668]
[1741472988712,0.01852338,86272.0,86271.0,1.66073968]
[1741472993215,0.01852338,86272.0,86271.0,1.54913968]
[1741472993393,0.01852338,86272.0,86271.0,1.66069968]
[1741472994134,3.8e-07,86272.0,86271.0,1.66069968]
[1741472994572,0.0003402,86274.0,86273.0,0.59032485]
[1741472994987,0.0003402,86274.0,86273.0,0.6030649]
[1741472997483,0.01852166,86274.0,86273.0,0.6030649]
[1741472999655,0.0003396,86285.0,86275.0,1.00456871]
[1741472999892,0.0003396,86285.0,86275.0,1.35524458]
[1741473000295,0.01852174,86276.0,86275.0,1.35524458]
[1741473000648,0.01852174,86276.0,86275.0,1.46680458]
[1741473001231,0.01852174,86276.0,86275.0,1.35524458]
[1741473001589,0.01852174,86276.0,86275.0,0.99070373]
[1741473001763,0.01852174,86276.0,86275.0,1.40226373]
[1741473001968,0.01852174,86276.0,86275.0,1.41680458]
[1741473002167,0.01852174,86276.0,86275.0,1.40226373]
[1741473002368,0.011589,86283.0,86278.0,0.01159]
[1741473002717,0.011589,86286.0,86280.0,0.139082]
[1741473002926,0.01818363,86282.0,86280.0,0.139082]
[1741473003104,0.01818363,86282.0,86278.0,0.01159]
[1741473003341,0.15726163,86282.0,86279.0,0.00046113]
[1741473003557,0.15726163,86282.0,86278.0,0.00046113]
[1741473003746,0.139078,86282.0,86277.0,0.01205113]
[1741473004361,0.011589,86283.0,86277.0,0.01205113]
[1741473004562,0.139083,86280.0,86277.0,0.00046113]
[1741473004719,0.139085,86278.0,86277.0,0.41152]
[1741473005307,0.196885,86278.0,86277.0,0.41152]
[1741473005531,0.06939,86278.0,86277.0,0.41152]
[1741473005733,0.0578,86278.0,86277.0,0.41152]
[1741473006818,0.07598376,86278.0,86277.0,0.41152]
[1741473009620,0.06588376,86278.0,86277.0,0.41152]
[1741473011100,0.06588376,86278.0,86277.0,0.550606]
[1741473011303,0.06588376,86278.0,86277.0,0.439086]
[1741473011502,0.06588376,86278.0,86277.0,0.550606]
[1741473011702,0.06588376,86278.0,86277.0,0.562196]
[1741473013966,0.06588376,86278.0,86277.0,0.550606]
[1741473014302,0.06588376,86278.0,86277.0,0.562196]
[1741473014923,0.06588376,86278.0,86276.0,0.01159]
[1741473015133,0.06588376,86278.0,86276.0,0.262196]
[1741473017855,0.06588376,86278.0,86277.0,0.01203592]
[1741473023808,0.01818376,86278.0,86277.0,0.01203592]
[1741473028926,0.01818376,86278.0,86277.0,0.15112192]
[1741473029219,0.01818376,86278.0,86277.0,0.01203592]
[1741473031321,0.01818376,86278.0,86277.0,0.01237552]
[1741473031500,0.150673,86280.0,86277.0,0.01237552]
[1741473032327,0.01159,86280.0,86277.0,0.01237552]
[1741473032706,0.01159,86280.0,86277.0,0.12389552]
[1741473033713,0.139083,86279.0,86277.0,0.12389552]
[1741473033942,0.01159,86278.0,86277.0,0.12389552]
[1741473034098,0.01159,86280.0,86277.0,0.12389552]
[1741473034303,0.150672,86280.0,86277.0,0.12389552]
[1741473034502,0.01159,86280.0,86277.0,0.12389552]
[1741473034928,0.150672,86280.0,86277.0,0.12389552]
[1741473041495,0.1688575,86280.0,86277.0,0.12389552]
[1741473043045,0.00125922,86280.0,86277.0,0.12389552]
[1741473043473,0.01159,86281.0,86277.0,0.12389552]
[1741473043657,0.139082,86280.0,86277.0,0.12389552]
[1741473044076,0.150672,86280.0,86277.0,0.12389552]
[1741473045953,0.150672,86280.0,86277.0,0.20439552]
[1741473046279,0.0117588,86287.0,86280.0,0.1299]
[1741473046496,0.0117588,86287.0,86280.0,0.14149]
[1741473046693,0.0001698,86287.0,86282.0,0.139078]
[1741473046872,0.01818439,86286.0,86281.0,0.16269899]
[1741473047072,0.01818439,86286.0,86283.0,0.01202569]
[1741473047413,0.01818439,86286.0,86284.0,0.01202357]
[1741473047626,0.01818439,86286.0,86281.0,0.15067]
[1741473047768,0.01818439,86286.0,86285.0,0.01202191]
[1741473047978,0.01818439,86286.0,86281.0,0.15067]
[1741473048329,0.01818439,86286.0,86285.0,0.01202191]
[1741473048495,0.01818439,86286.0,86281.0,0.15067]
[1741473048727,0.01818439,86286.0,86285.0,0.01202191]
[1741473048901,0.01818439,86286.0,86281.0,0.15067]
[1741473049095,0.01818439,86286.0,86285.0,0.01202191]
[1741473049304,0.011589,86285.0,86280.0,0.14149]
[1741473049710,0.011589,86285.0,86280.0,0.28057]
[1741473049914,0.01818439,86286.0,86281.0,0.01202852]
[1741473050107,0.01818439,86286.0,86282.0,0.150667]
[1741473050533,0.01818439,86286.0,86283.0,0.01202522]
[1741473050849,0.01818439,86286.0,86283.0,0.02361422]
[1741473051687,0.01818439,86286.0,86283.0,0.01202522]
[1741473052875,0.01818439,86286.0,86285.0,0.011589]
[1741473053173,0.01818439,86286.0,86285.0,0.02360973]
[1741473053370,0.01835419,86286.0,86285.0,0.02360973]
[1741473056686,0.01835419,86286.0,86285.0,0.01202073]
[1741473057495,0.01835419,86286.0,86282.0,0.011589]
[1741473057701,0.01835419,86286.0,86285.0,0.01202001]
[1741473057902,0.01835419,86286.0,86282.0,0.011589]
[1741473058078,0.01835419,86286.0,86285.0,0.01202001]
[1741473058278,0.01835419,86286.0,86282.0,0.011589]
[1741473058483,0.01835419,86286.0,86285.0,0.01202001]
[1741473058686,0.01835419,86286.0,86282.0,0.011589]
[1741473058890,0.01835419,86286.0,86285.0,0.01202001]
[1741473059100,0.01835419,86286.0,86283.0,0.011589]
[1741473059293,0.01835419,86286.0,86285.0,0.01202001]
[1741473059825,0.01835419,86286.0,86283.0,0.011589]
[1741473059977,0.01835419,86286.0,86285.0,0.01202001]
[1741473060185,0.01835419,86286.0,86283.0,0.011589]
[1741473060388,0.01835419,86286.0,86285.0,0.01202001]
[1741473060591,0.01835419,86286.0,86283.0,0.011589]
[1741473060928,0.01835419,86286.0,86285.0,0.01202001]
[1741473061128,0.01835419,86286.0,86284.0,0.01202166]
[1741473061432,0.01835419,86286.0,86285.0,0.01202001]
[1741473061631,0.01835419,86286.0,86283.0,0.011589]
[1741473061856,0.01835419,86286.0,86285.0,0.01202001]
[1741473062060,0.01835419,86286.0,86283.0,0.011589]
[1741473062217,0.01835419,86286.0,86285.0,0.01202001]
[1741473062419,0.01835419,86286.0,86283.0,0.011589]
[1741473062621,0.01835419,86286.0,86285.0,0.01202001]
[1741473062996,0.01835419,86286.0,86283.0,0.011589]
[1741473063337,0.01835419,86286.0,86285.0,0.01202001]
[1741473063541,0.01835419,86286.0,86284.0,0.01202166]
[1741473063763,0.01835419,86286.0,86285.0,0.01202001]
[1741473063988,0.01835419,86286.0,86283.0,0.011589]
[1741473064486,0.01835419,86286.0,86284.0,0.01202166]
[1741473064820,0.01835419,86286.0,86284.0,0.02361066]
[1741473065039,0.01835419,86286.0,86284.0,0.01202166]
[1741473065584,0.01835419,86286.0,86284.0,0.02361066]
[1741473069820,0.09256827,86290.0,86284.0,0.02361066]
[1741473070199,0.01818469,86286.0,86284.0,0.02361066]
[1741473070534,0.09256827,86290.0,86284.0,0.02361066]
[1741473070732,0.139069,86289.0,86284.0,0.02361066]
[1741473070917,0.011588,86289.0,86284.0,0.02361066]
[1741473073084,0.01818402,86288.0,86284.0,0.02361066]
[1741473073934,0.01818402,86288.0,86287.0,0.22047]
[1741473074233,0.01818402,86288.0,86287.0,0.24407563]
[1741473074891,0.0004,86299.0,86297.0,0.011587]
[1741473075091,0.0004,86299.0,86298.0,0.0814]
[1741473075314,0.0004,86299.0,86298.0,0.092987]
[1741473075742,0.0004,86299.0,86298.0,0.10498548]
[1741473076197,0.0004,86299.0,86298.0,0.10538945]
[1741473076604,0.0004,86299.0,86298.0,0.21678945]
[1741473077365,0.0005698,86299.0,86298.0,0.26198945]
[1741473077925,0.01875037,86299.0,86298.0,0.2765303]
[1741473078713,0.01875037,86299.0,86298.0,0.4253303]
[1741473080571,0.01875037,86299.0,86298.0,0.7253303]
[1741473082865,0.01875037,86299.0,86298.0,1.22921901]
[1741473083871,0.0003398,86309.0,86308.0,0.450622]
[1741473084080,0.00094997,86322.0,86321.0,0.46513985]
[1741473084284,0.00094997,86322.0,86321.0,1.35998856]
[1741473084285,9.7e-07,86322.0,86321.0,1.35998856]
[1741473084489,0.00495,86357.0,86334.0,0.150577]
[1741473084724,0.00495,86357.0,86334.0,0.35747785]
[1741473084918,0.00495,86357.0,86334.0,0.36940631]
[1741473084919,0.011579,86356.0,86334.0,0.36940631]
[1741473085118,0.00495,86357.0,86334.0,0.36940631]
[1741473085690,0.00495,86357.0,86334.0,0.36981028]
[1741473085862,0.00495,86357.0,86334.0,0.66981028]
[1741473086018,0.00495,86357.0,86334.0,0.68135973]
[1741473086223,0.00495,86357.0,86334.0,0.73115973]
[1741473086849,0.00495,86357.0,86334.0,1.23504844]
[1741473087249,0.01851202,86335.0,86334.0,1.23504844]
[1741473099417,0.0003396,86335.0,86334.0,1.23504844]
[1741473101333,0.0003396,86335.0,86334.0,1.23496844]
[1741473101600,0.0011698,86349.0,86338.0,0.52647]
[1741473101762,0.0011698,86349.0,86338.0,0.54101085]
[1741473101962,0.0011698,86349.0,86338.0,0.55291579]
[1741473102395,0.01856973,86339.0,86338.0,0.55291579]
[1741473103504,0.0004,86339.0,86338.0,0.55291579]
[1741473103728,0.0004,86339.0,86338.0,1.0568045]
[1741473106340,0.01856943,86339.0,86338.0,1.0568045]
[1741473106545,0.01856943,86339.0,86338.0,1.1680845]
[1741473108527,0.01856943,86339.0,86338.0,1.04226365]
[1741473108740,0.01856943,86339.0,86338.0,1.15354365]
[1741473109199,0.01856943,86339.0,86338.0,0.01190494]
[1741473109424,0.01856943,86339.0,86334.0,0.01198597]
[1741473109425,0.03015143,86339.0,86337.0,0.11128]
[1741473109787,0.150575,86335.0,86334.0,0.00040397]
[1741473110085,0.16222733,86335.0,86334.0,0.00040397]
[1741473111346,0.150575,86335.0,86334.0,0.00040397]
[1741473111551,0.13943334,86338.0,86334.0,0.00040397]
[1741473111973,0.138993,86335.0,86334.0,0.00040397]
[1741473112876,0.150575,86335.0,86334.0,0.00040397]
[1741473114630,0.16240946,86335.0,86334.0,0.00040397]
[1741473115168,0.03032113,86339.0,86334.0,0.00040397]
[1741473115169,0.01873913,86339.0,86338.0,0.011582]
[1741473115370,0.0005697,86339.0,86338.0,0.94244968]
[1741473115591,0.0005697,86339.0,86338.0,0.9705837]
[1741473116350,0.0005697,86339.0,86338.0,0.9752307]
[1741473116963,0.0005697,86339.0,86338.0,0.96349405]
[1741473118359,0.01873906,86339.0,86338.0,0.96349405]
[1741473119107,0.01873906,86339.0,86338.0,0.97522691]
[1741473120087,0.01873906,86339.0,86338.0,0.97476578]
[1741473120260,0.01873906,86339.0,86338.0,0.97522691]
[1741473120476,0.01873906,86339.0,86338.0,0.96349405]
[1741473120680,0.01873906,86339.0,86338.0,0.97499951]
[1741473121544,6e-08,86339.0,86338.0,0.97499951]
[1741473121905,0.0001698,86345.0,86344.0,0.450559]
[1741473122130,0.0001698,86345.0,86344.0,0.63089751]
[1741473125978,0.0001698,86345.0,86344.0,0.70819751]
[1741473127411,0.0001698,86345.0,86344.0,0.75809751]
[1741473127605,0.0001698,86345.0,86344.0,1.26198622]
[1741473131685,8e-07,86345.0,86344.0,1.26198622]
[1741473134592,0.123775,86389.0,86375.0,0.011577]
[1741473134893,0.138917,86382.0,86376.0,0.138927]
[1741473135050,0.011576,86383.0,86376.0,0.1558992]
[1741473135257,0.011576,86383.0,86376.0,0.0169722]
[1741473135258,0.138917,86382.0,86376.0,0.0169722]
[1741473135923,0.138917,86382.0,86376.0,0.01737617]
[1741473136299,0.145493,86382.0,86376.0,0.02895317]
[1741473137844,0.01816694,86381.0,86376.0,0.02895317]
[1741473138143,0.150497,86380.0,86376.0,0.01737617]
[1741473139077,0.01816694,86381.0,86379.0,0.011576]
[1741473139209,0.01816694,86381.0,86377.0,0.011577]
[1741473139454,0.01816694,86381.0,86380.0,0.01695801]
[1741473139668,0.01816694,86381.0,86380.0,0.02853401]
[1741473141759,0.01816694,86381.0,86380.0,0.01695801]
[1741473141955,0.01816694,86381.0,86376.0,0.01198097]
[1741473142164,0.01816694,86381.0,86378.0,0.011577]
[1741473142568,0.01816694,86381.0,86379.0,0.01696098]
[1741473142929,0.01816694,86381.0,86380.0,0.011576]
[1741473143082,0.01816694,86381.0,86380.0,0.02853401]
[1741473144733,0.01816694,86381.0,86380.0,0.16745501]
[1741473144939,0.01816694,86381.0,86380.0,0.02853401]
[1741473149865,0.0001698,86382.0,86381.0,0.011576]
[1741473150182,0.0001698,86382.0,86381.0,0.02853105]
[1741473151925,0.0001698,86382.0,86381.0,0.01695505]
[1741473152770,0.01833498,86382.0,86381.0,0.01695505]
[1741473154002,0.0001698,86382.0,86381.0,0.01695505]
[1741473156765,0.0001698,86382.0,86381.0,0.02853105]
[1741473156991,0.01833493,86382.0,86381.0,0.10743105]
[1741473160408,0.01833493,86382.0,86381.0,0.02853105]
[1741473160889,0.01833493,86382.0,86381.0,0.02887065]
[1741473175386,0.01833493,86382.0,86381.0,0.13999065]
[1741473177695,60.001,86709.0,86381.0,0.27890765]
[1741473177915,0.011575,86392.0,86387.0,0.011575]
[1741473178120,0.02304355,86392.0,86388.0,0.0169343]
[1741473179320,0.01146855,86392.0,86388.0,0.0169343]
[1741473179541,0.150472,86394.0,86388.0,0.0169343]
[1741473179744,0.138898,86394.0,86388.0,0.0285093]
[1741473180066,0.138896,86395.0,86388.0,0.0169343]
[1741473180268,0.15047,86395.0,86388.0,0.0169343]
[1741473180419,0.150478,86391.0,86382.0,0.11112]
[1741473180766,0.150472,86394.0,86382.0,0.11112]
[1741473180905,0.138911,86387.0,86383.0,0.01694912]
[1741473181107,0.01816409,86389.0,86384.0,0.075]
[1741473181380,0.01816409,86389.0,86388.0,0.150483]
[1741473181527,0.01816409,86389.0,86388.0,0.01693149]
[1741473181871,0.01816409,86389.0,86385.0,0.011576]
[1741473182069,0.01816409,86389.0,86388.0,0.01693149]
[1741473182270,0.01816409,86389.0,86385.0,0.011576]
[1741473182271,0.01816409,86389.0,86385.0,0.150487]
[1741473182488,0.01816409,86389.0,86388.0,0.14113149]
[1741473182694,0.011574,86394.0,86384.0,0.138913]
[1741473182695,0.001,86409.0,86398.0,0.150466]
[1741473182913,0.001,86409.0,86398.0,0.385786]
[1741473183135,0.001,86409.0,86398.0,0.40268628]
[1741473187342,0.01855985,86399.0,86398.0,0.40268628]
[1741473196132,0.01872965,86399.0,86398.0,0.40268628]
[1741473221893,0.01872965,86399.0,86398.0,0.24236628]
[1741473222119,0.0005698,86399.0,86398.0,0.35340628]
[1741473222334,0.0005698,86399.0,86398.0,0.24236628]
[1741473223479,0.0005698,86399.0,86398.0,0.35336628]
[1741473225131,0.01872923,86399.0,86398.0,0.35336628]
[1741473225335,0.01872923,86399.0,86398.0,0.24236628]
[1741473225743,0.01872923,86399.0,86398.0,0.35336628]
[1741473226147,0.01872923,86399.0,86398.0,0.24236628]
[1741473226521,0.01872923,86399.0,86398.0,0.35336628]
[1741473226691,0.01872923,86399.0,86398.0,0.24236628]
[1741473227305,0.01872923,86399.0,86398.0,0.35336628]
[1741473227514,0.01872923,86399.0,86398.0,0.24236628]
[1741473227897,0.01872923,86399.0,86398.0,0.35336628]
[1741473228092,0.01872923,86399.0,86398.0,0.24236628]
[1741473228299,0.01872923,86399.0,86398.0,0.35336628]
[1741473228503,0.0460524,86415.0,86408.0,0.011573]
[1741473228745,0.011572,86414.0,86409.0,0.111]
[1741473228900,0.011572,86414.0,86409.0,0.01685477]
[1741473229102,0.011572,86414.0,86410.0,0.111]
[1741473229323,0.0576244,86415.0,86409.0,0.02842677]
[1741473229500,0.0571244,86415.0,86411.0,0.12784884]
[1741473229699,0.0571244,86415.0,86411.0,0.00040397]
[1741473230018,0.0571244,86415.0,86412.0,0.01684588]
[1741473230411,0.07528293,86415.0,86412.0,0.01684588]
[1741473230730,0.01815853,86415.0,86412.0,0.01684588]
[1741473231494,0.01815853,86415.0,86412.0,0.12784588]
[1741473231690,0.01815853,86415.0,86412.0,0.01684588]
[1741473231914,0.01815853,86415.0,86412.0,0.12784588]
[1741473232699,0.01815853,86415.0,86413.0,0.138867]
[1741473232940,0.180459,86419.0,86413.0,0.150439]
[1741473233162,0.180459,86419.0,86414.0,0.01683996]
[1741473233361,0.0001698,86415.0,86414.0,0.02841196]
[1741473237242,0.01832796,86415.0,86414.0,0.02841196]
[1741473238531,0.3115524,86426.0,86415.0,0.011572]
[1741473238791,0.011571,86421.0,86416.0,0.02840503]
[1741473239610,0.150425,86422.0,86416.0,0.02840503]
[1741473241442,0.011571,86422.0,86416.0,0.02840503]
[1741473242000,0.011571,86422.0,86417.0,0.011571]
[1741473242206,0.011571,86422.0,86418.0,0.01682811]
[1741473242406,0.150424,86422.0,86418.0,0.01682811]
[1741473245776,0.150427,86421.0,86418.0,0.01682811]
[1741473245981,0.150427,86421.0,86416.0,0.0119104]
[1741473246179,0.150427,86421.0,86417.0,0.01683107]
[1741473246376,0.150427,86421.0,86416.0,0.0119104]
[1741473246579,0.150427,86421.0,86417.0,0.01683107]
[1741473246784,0.150427,86421.0,86416.0,0.0003394]
[1741473247005,0.011571,86417.0,86416.0,0.0003394]
[1741473248600,0.13886,86418.0,86416.0,0.0003394]
[1741473248849,0.011571,86419.0,86416.0,0.0003394]
[1741473249140,0.15043,86418.0,86416.0,0.0003394]
[1741473249844,0.011571,86420.0,86416.0,0.0003394]
[1741473250058,0.150429,86419.0,86416.0,0.0003394]
[1741473250261,0.138861,86417.0,86416.0,0.0003394]
[1741473250790,0.011571,86417.0,86416.0,0.0003394]
[1741473254800,0.011571,86417.0,86416.0,0.01717343]
[1741473255206,0.011571,86417.0,86416.0,0.0003394]
[1741473257496,0.150432,86417.0,86416.0,0.0003394]
[1741473258011,0.150432,86417.0,86416.0,0.01717343]
[1741473258211,0.150432,86417.0,86416.0,0.0003394]
[1741473263835,0.501732,86417.0,86416.0,0.0003394]
[1741473264044,0.74127285,86417.0,86416.0,0.0003394]
[1741473265079,0.74127285,86417.0,86411.0,0.00040397]
[1741473265080,0.526741,86412.0,86411.0,0.00040397]
[1741473265355,1.59078185,86412.0,86411.0,0.00040397]
[1741473265526,0.54128185,86412.0,86411.0,0.00040397]
[1741473266040,0.54128185,86412.0,86383.0,0.11096]
[1741473266041,0.150469,86396.0,86383.0,0.11096]
[1741473266755,0.16863231,86396.0,86383.0,0.11096]
[1741473269675,0.16863231,86396.0,86383.0,0.122536]
[1741473270293,0.16863231,86396.0,86384.0,0.011576]
[1741473272197,0.16863231,86396.0,86385.0,0.011576]
[1741473272576,0.01816331,86396.0,86395.0,0.0119136]
[1741473272799,0.01816331,86396.0,86395.0,0.1508096]
[1741473273012,0.01816331,86396.0,86395.0,0.16815888]
[1741473273229,0.3,86400.0,86398.0,0.011574]
[1741473273426,0.3,86400.0,86399.0,0.01733743]
[1741473273631,0.3,86400.0,86398.0,0.011574]
[1741473273833,0.3,86400.0,86399.0,0.01733743]
[1741473274127,0.3,86400.0,86396.0,0.011574]
[1741473274554,0.3,86400.0,86397.0,0.01734335]
[1741473274755,0.3,86400.0,86399.0,0.011574]
[1741473275110,0.3,86400.0,86399.0,0.02891143]
[1741473275742,0.3,86400.0,86399.0,0.01733743]
[1741473275938,0.24254277,86403.0,86399.0,0.01733743]
[1741473275939,0.40365877,86403.0,86402.0,0.150458]
[1741473276220,0.10365877,86403.0,86402.0,0.01732854]
[1741473276429,0.10365877,86403.0,86401.0,0.011573]
[1741473276693,0.12182038,86403.0,86402.0,0.15621354]
[1741473276898,0.12182038,86403.0,86402.0,0.16778654]
[1741473276899,0.01816161,86403.0,86402.0,0.16778654]
[1741473278312,0.01816161,86403.0,86402.0,0.02890154]
[1741473279318,0.01816161,86403.0,86402.0,0.01732854]
[1741473279485,0.01816161,86403.0,86400.0,0.011574]
[1741473279901,0.01816161,86403.0,86401.0,0.01733481]
[1741473280305,0.01816161,86403.0,86399.0,0.150464]
[1741473280692,0.01816161,86403.0,86400.0,0.01733777]
[1741473281009,0.02973461,86403.0,86400.0,0.01733777]
[1741473281176,0.02973461,86403.0,86398.0,0.138891]
[1741473281376,0.02973461,86403.0,86399.0,0.01734074]
[1741473283041,0.16861861,86403.0,86399.0,0.01734074]
[1741473284927,0.15046,86402.0,86399.0,0.01734074]
[1741473285111,0.15046,86402.0,86397.0,0.011574]
[1741473285305,0.15046,86402.0,86400.0,0.01734209]
[1741473285463,0.15046,86402.0,86397.0,0.011574]
[1741473285666,0.15046,86402.0,86401.0,0.01733913]
[1741473285886,0.15046,86402.0,86396.0,0.138894]
[1741473286083,0.138884,86403.0,86401.0,0.01733913]
[1741473286289,0.15046,86402.0,86396.0,0.138894]
[1741473286902,0.10365877,86420.0,86410.0,0.273844]
[1741473287243,0.10365877,86420.0,86410.0,0.384804]
[1741473289841,0.10365877,86420.0,86410.0,0.40211681]
[1741473290044,0.0001697,86422.0,86410.0,0.40211681]
[1741473290881,0.0001697,86422.0,86410.0,0.29115681]
[1741473291036,0.0001697,86422.0,86410.0,0.40207681]
[1741473292261,0.0001697,86422.0,86410.0,0.29115681]
[1741473292679,0.0001697,86422.0,86410.0,0.40207681]
[1741473294549,0.0001697,86422.0,86410.0,0.40907681]
[1741473295363,0.0001697,86422.0,86410.0,0.41607681]
[1741473297875,0.0001697,86422.0,86410.0,0.30515681]
[1741473298081,0.0001697,86422.0,86410.0,0.41607681]
[1741473298278,0.0001697,86422.0,86410.0,0.30515681]
[1741473298507,0.0001697,86422.0,86410.0,0.41607681]
[1741473309364,0.0001697,86422.0,86410.0,0.30515681]
[1741473309574,0.0001697,86422.0,86410.0,0.41603681]
[1741473324927,0.0001697,86422.0,86410.0,0.30515681]
[1741473325159,0.0001697,86422.0,86410.0,0.41603681]
[1741473325335,0.0001697,86422.0,86410.0,0.4110808]
[1741473329821,0.0001697,86422.0,86410.0,0.4110408]
[1741473330037,0.0001697,86422.0,86410.0,0.2532008]
[1741473330207,0.0001697,86422.0,86410.0,0.3640408]
[1741473331426,0.0001697,86422.0,86410.0,0.2876408]
[1741473332208,0.150435,86416.0,86410.0,0.0379288]
[1741473332361,0.1506128,86411.0,86410.0,0.0263568]
[1741473332563,0.1506128,86411.0,86410.0,0.014]
[1741473333165,0.1918128,86411.0,86410.0,0.014]
[1741473333365,0.1918128,86411.0,86410.0,0.007]
[1741473333604,0.138877,86407.0,86404.0,0.0003396]
[1741473334782,0.15045,86407.0,86405.0,0.01322873]
[1741473335179,0.138872,86410.0,86406.0,0.0819]
[1741473335451,0.0001698,86411.0,86410.0,0.150444]
[1741473335833,0.0001698,86411.0,86410.0,0.1636662]
[1741473337237,0.0001698,86411.0,86410.0,0.1686662]
[1741473337614,0.0001698,86411.0,86410.0,0.1756662]
[1741473339623,0.0001698,86411.0,86410.0,0.2865062]
[1741473346217,0.0001698,86411.0,86410.0,0.3621062]
[1741473348021,0.0001698,86411.0,86410.0,0.2512662]
[1741473349038,0.0001698,86411.0,86410.0,0.238044]
[1741473349200,0.0001698,86411.0,86410.0,0.25126376]
[1741473352814,0.06152675,86433.0,86424.0,0.01157]
[1741473353092,7.642e-05,86428.0,86425.0,0.01157]
[1741473353934,7.642e-05,86428.0,86426.0,0.01319222]
[1741473354873,7.642e-05,86428.0,86427.0,0.150415]
[1741473355277,7.642e-05,86428.0,86427.0,0.16360554]
[1741473356262,7.642e-05,86428.0,86427.0,0.02476054]
[1741473361157,7.642e-05,86428.0,86427.0,0.16360554]
[1741473363902,0.00024622,86428.0,86427.0,0.16360554]
[1741473364683,0.00024622,86428.0,86427.0,0.16560554]
[1741473365443,0.00024622,86428.0,86427.0,0.16760554]
[1741473368956,0.00024622,86428.0,86427.0,0.24930554]
[1741473375219,0.00024622,86428.0,86427.0,0.24964514]
[1741473378233,0.3,86444.0,86427.0,0.11080014]
[1741473378602,0.01163069,86440.0,86429.0,0.01157]
[1741473378776,0.011569,86437.0,86430.0,0.26121]
[1741473378971,0.011569,86437.0,86430.0,0.27439328]
[1741473379183,0.011569,86437.0,86432.0,0.138837]
[1741473379718,0.011569,86437.0,86433.0,0.01317822]
[1741473380453,0.012569,86437.0,86433.0,0.01317822]
[1741473380772,0.011569,86437.0,86433.0,0.01317822]
[1741473381785,0.012569,86437.0,86433.0,0.01317822]
[1741473381991,0.013569,86437.0,86433.0,0.01317822]
[1741473382412,0.002,86437.0,86433.0,0.01317822]
[1741473382615,0.002,86437.0,86434.0,0.150403]
[1741473382811,0.002,86437.0,86434.0,0.16357954]
[1741473383415,0.001,86437.0,86434.0,0.02474554]
[1741473383630,0.138826,86439.0,86434.0,0.02474554]
[1741473384626,0.001,86437.0,86434.0,0.02474554]
[1741473385039,0.138826,86439.0,86434.0,0.02474554]
[1741473385234,0.01163069,86440.0,86434.0,0.02474554]
[1741473385440,0.140826,86439.0,86435.0,0.0822]
[1741473385613,0.140826,86439.0,86435.0,0.09537485]
[1741473385819,0.001,86437.0,86435.0,0.09537485]
[1741473386019,0.140826,86439.0,86435.0,0.09537485]
[1741473386222,0.002,86439.0,86435.0,0.09537485]
[1741473386433,0.004,86439.0,86435.0,0.09537485]
[1741473386654,0.002,86439.0,86435.0,0.09537485]
[1741473386854,0.004,86439.0,86435.0,0.09537485]
[1741473387778,0.005,86439.0,86435.0,0.09537485]
[1741473389684,0.0001698,86437.0,86435.0,0.09537485]
[1741473390334,0.0117388,86437.0,86435.0,0.09537485]
[1741473390893,0.0127388,86437.0,86435.0,0.09537485]
[1741473392021,0.0137388,86437.0,86435.0,0.09537485]
[1741473392725,0.1525688,86437.0,86435.0,0.09537485]
[1741473393196,0.011569,86436.0,86435.0,0.09537485]
[1741473395436,0.012569,86436.0,86435.0,0.09537485]
[1741473397773,0.012569,86436.0,86435.0,0.01317485]
[1741473398172,0.012569,86436.0,86427.0,0.0003396]
[1741473398173,0.150413,86428.0,86427.0,0.0003396]
[1741473398578,0.150413,86428.0,86427.0,0.0135267]
[1741473398787,0.150413,86428.0,86427.0,0.0003396]
[1741473399017,0.150413,86428.0,86427.0,0.0135267]
[1741473399224,0.150413,86428.0,86427.0,0.0003396]
[1741473399411,0.150413,86428.0,86427.0,0.0023396]
[1741473399705,0.150413,86428.0,86427.0,0.01951523]
[1741473399942,0.01157,86428.0,86427.0,0.0053396]
[1741473400137,0.01157,86428.0,86427.0,0.01979933]
[1741473400337,0.01157,86428.0,86427.0,0.0053396]
[1741473400538,0.011569,86431.0,86427.0,0.0053396]
[1741473400714,0.01157,86428.0,86427.0,0.0053396]
[1741473401040,0.15041,86430.0,86427.0,0.0053396]
[1741473401791,0.13884,86430.0,86427.0,0.0053396]
[1741473402094,0.13884,86430.0,86427.0,0.0023396]
[1741473402439,0.13884,86430.0,86427.0,0.0033396]